bitfinex/quotes_BTCUSD_20230111
["timestamp","ask_amount","ask_price","bid_price","bid_amount"]
[1673463289619,0.50903711,17465.0,17464.0,2.41570186]
[1673463290643,0.50903711,17465.0,17464.0,2.58409538]
[1673463290904,0.50903711,17465.0,17464.0,2.41570141]
[1673463291932,0.50903711,17465.0,17464.0,2.98830741]
[1673463292217,0.50903711,17465.0,17464.0,2.41570141]
[1673463292677,0.50903711,17465.0,17464.0,2.33630537]
[1673463294209,0.50903711,17465.0,17464.0,2.50469934]
[1673463295029,0.50903711,17465.0,17464.0,3.07730534]
[1673463296355,0.50903711,17465.0,17464.0,3.37730534]
[1673463296868,0.50903711,17465.0,17464.0,3.07730534]
[1673463297118,0.50903711,17465.0,17464.0,2.50469934]
[1673463297457,0.86046787,17465.0,17464.0,2.33639963]
[1673463297633,0.86046787,17465.0,17464.0,1.57718858]
[1673463298374,0.134,17465.0,17464.0,2.47229414]
[1673463298636,0.134,17465.0,17464.0,3.04490014]
[1673463299191,0.134,17465.0,17464.0,2.30401738]
[1673463299637,0.134,17465.0,17464.0,1.57721153]
[1673463299812,0.134,17465.0,17464.0,2.30410676]
[1673463302069,0.134,17465.0,17464.0,2.47238352]
[1673463302308,0.134,17465.0,17464.0,2.3041215]
[1673463303329,0.134,17465.0,17464.0,2.47238352]
[1673463303832,0.134,17465.0,17464.0,3.34498952]
[1673463304066,0.134,17465.0,17464.0,3.87073604]
[1673463304313,0.134,17465.0,17464.0,3.79609111]
[1673463304567,0.134,17465.0,17464.0,3.66316554]
[1673463304809,0.134,17465.0,17464.0,3.60518154]
[1673463305320,0.134,17465.0,17464.0,3.96316554]
[1673463305853,0.134,17465.0,17464.0,2.83699057]
[1673463306114,0.134,17465.0,17464.0,3.71337475]
[1673463306370,0.134,17465.0,17464.0,3.14076875]
[1673463306860,0.134,17465.0,17464.0,3.05202353]
[1673463307353,0.134,17465.0,17464.0,3.35202353]
[1673463307615,0.134,17465.0,17464.0,3.45152757]
[1673463307857,0.134,17465.0,17464.0,2.94162739]
[1673463308352,0.134,17465.0,17464.0,3.07039169]
[1673463308594,0.134,17465.0,17464.0,3.11259694]
[1673463310356,0.134,17465.0,17464.0,3.68520294]
[1673463310604,0.13389541,17465.0,17464.0,3.98520294]
[1673463312076,0.13389541,17465.0,17464.0,4.32816308]
[1673463312627,0.13389541,17465.0,17464.0,3.98520294]
[1673463312899,0.13389541,17465.0,17464.0,3.62721894]
[1673463313139,0.13389541,17465.0,17464.0,3.67015074]
[1673463313378,0.13389541,17465.0,17464.0,4.02813474]
[1673463313876,0.13389541,17465.0,17464.0,3.98520294]
[1673463314846,0.13389541,17465.0,17464.0,3.97818709]
[1673463316789,0.13389541,17465.0,17464.0,3.97823127]
[1673463317046,0.13389541,17465.0,17464.0,3.54942279]
[1673463317559,0.13389541,17465.0,17464.0,4.05932297]
[1673463317804,0.13389541,17465.0,17464.0,3.95981893]
[1673463318085,0.13389541,17465.0,17464.0,4.06942882]
[1673463318298,0.13389541,17465.0,17464.0,3.96000195]
[1673463319281,0.13389541,17465.0,17464.0,4.06096821]
[1673463319525,0.13389541,17465.0,17464.0,3.55106803]
[1673463319770,0.13389541,17465.0,17464.0,4.06096821]
[1673463320023,0.13389541,17465.0,17464.0,3.55106803]
[1673463321267,0.13389541,17465.0,17464.0,4.06096821]
[1673463321498,0.13389541,17465.0,17464.0,3.55106803]
[1673463321978,0.13389541,17465.0,17464.0,2.88106803]
[1673463322223,0.13389541,17465.0,17464.0,2.83752247]
[1673463323942,0.13389541,17465.0,17464.0,3.13752247]
[1673463324438,0.13389541,17465.0,17464.0,3.70493117]
[1673463325190,0.13389541,17465.0,17464.0,3.60396491]
[1673463325448,0.13389541,17465.0,17464.0,4.56501242]
[1673463325690,0.12050587,17465.0,17464.0,5.36007536]
[1673463325938,3.16412985,17470.0,17465.0,0.3]
[1673463326182,3.16412985,17470.0,17469.0,0.17133128]
[1673463326476,3.16412985,17470.0,17469.0,2.48431917]
[1673463326477,0.52572985,17470.0,17469.0,2.48431917]
[1673463326736,0.52572985,17470.0,17469.0,2.78431917]
[1673463326999,0.52572985,17470.0,17469.0,2.18865728]
[1673463327515,0.52572985,17470.0,17469.0,2.017326]
[1673463327917,0.00699606,17471.0,17469.0,2.017326]
[1673463328402,0.06,17470.0,17469.0,2.30105203]
[1673463328867,0.06,17470.0,17469.0,2.55804894]
[1673463329125,0.00699606,17471.0,17469.0,2.84704894]
[1673463329386,0.06699606,17471.0,17470.0,0.3]
[1673463329647,0.00699606,17471.0,17470.0,2.01740996]
[1673463330403,0.00699606,17471.0,17470.0,2.31740996]
[1673463330887,0.00699606,17471.0,17470.0,2.64470996]
[1673463331129,0.06699606,17471.0,17470.0,3.00269396]
[1673463331379,0.06699606,17471.0,17470.0,3.12180885]
[1673463331633,0.00699606,17471.0,17470.0,2.82180885]
[1673463331891,0.06699606,17471.0,17470.0,2.83280885]
[1673463333160,0.06699606,17471.0,17470.0,2.84933606]
[1673463333644,0.06699606,17471.0,17470.0,3.14933606]
[1673463336924,0.06699606,17471.0,17470.0,2.8491531]
[1673463337434,0.06699606,17471.0,17470.0,2.4911691]
[1673463337942,0.06699606,17471.0,17470.0,2.8491531]
[1673463339673,0.06699606,17471.0,17470.0,3.1491531]
[1673463341191,0.06699606,17471.0,17470.0,3.32898438]
[1673463341436,0.06699606,17471.0,17470.0,4.30594386]
[1673463341686,0.06699606,17471.0,17470.0,4.22889281]
[1673463342447,0.06699606,17471.0,17470.0,4.40022408]
[1673463342951,0.00699606,17471.0,17470.0,4.48740754]
[1673463343191,0.00999606,17471.0,17470.0,3.60267002]
[1673463343436,0.00999606,17471.0,17470.0,3.34567311]
[1673463344763,0.00999606,17471.0,17470.0,4.43801923]
[1673463345000,0.00999606,17471.0,17470.0,4.49552775]
[1673463345256,0.00999606,17471.0,17470.0,4.80601624]
[1673463346225,0.00999606,17471.0,17470.0,5.06238054]
[1673463346476,0.00999606,17471.0,17470.0,4.80601624]
[1673463347221,0.00999606,17471.0,17470.0,5.06238153]
[1673463347470,0.00999606,17471.0,17470.0,4.49489613]
[1673463347722,0.00999606,17471.0,17470.0,4.6069072]
[1673463347974,0.00999606,17471.0,17470.0,3.7155455]
[1673463348488,0.00999606,17471.0,17470.0,3.41711018]
[1673463348735,0.00999606,17471.0,17470.0,3.67347547]
[1673463349481,0.00999606,17471.0,17470.0,3.35960166]
[1673463350465,0.009902,17471.0,17470.0,4.07837224]
[1673463350715,0.009902,17471.0,17470.0,3.6580191]
[1673463350968,0.009902,17471.0,17470.0,3.61596695]
[1673463351721,0.009902,17471.0,17470.0,3.35960166]
[1673463352987,0.009902,17471.0,17470.0,3.61596695]
[1673463353200,0.009902,17471.0,17470.0,3.35960166]
[1673463353446,0.009902,17471.0,17470.0,3.61596695]
[1673463353693,0.009902,17471.0,17470.0,3.6580343]
[1673463353939,0.009902,17471.0,17470.0,3.4945343]
[1673463354437,0.009902,17471.0,17470.0,3.45246695]
[1673463355248,0.009902,17471.0,17470.0,2.42504928]
[1673463355500,0.009902,17471.0,17470.0,2.25274928]
[1673463356724,0.009902,17471.0,17470.0,2.55274928]
[1673463358241,0.009902,17471.0,17470.0,2.7236187]
[1673463360987,0.009902,17471.0,17470.0,3.32209716]
[1673463361482,0.009902,17471.0,17470.0,3.78778584]
[1673463361727,0.00838,17471.0,17470.0,4.03031901]
[1673463361984,0.00838,17471.0,17470.0,4.5200729]
[1673463362228,0.00838,17471.0,17470.0,4.70021893]
[1673463362470,0.00838,17471.0,17470.0,5.2941666]
[1673463362721,0.00808992,17474.0,17470.0,5.4564666]
[1673463362980,0.00793992,17474.0,17473.0,0.59172022]
[1673463363242,0.00793992,17474.0,17473.0,3.28219609]
[1673463363492,0.00793992,17474.0,17473.0,3.75225648]
[1673463363756,0.00793992,17474.0,17473.0,4.28733404]
[1673463364001,0.01093992,17474.0,17473.0,4.52088557]
[1673463364248,0.01093992,17474.0,17473.0,3.82766557]
[1673463364983,0.06393992,17474.0,17473.0,3.79910864]
[1673463365470,0.06393992,17474.0,17473.0,4.51601478]
[1673463365721,0.06393992,17474.0,17473.0,4.08311947]
[1673463365968,0.06393992,17474.0,17473.0,4.8110666]
[1673463366472,0.06393992,17474.0,17473.0,5.15343151]
[1673463366985,0.06393992,17474.0,17473.0,3.32700954]
[1673463367235,0.06393992,17474.0,17473.0,3.26950102]
[1673463367727,0.06393992,17474.0,17473.0,3.73614696]
[1673463368478,0.06393992,17474.0,17473.0,4.03614696]
[1673463368723,0.06393992,17474.0,17473.0,3.86490008]
[1673463369986,0.06393992,17474.0,17473.0,4.08196358]
[1673463370231,0.06393992,17474.0,17473.0,4.62261007]
[1673463370486,0.06393992,17474.0,17473.0,4.01851437]
[1673463370757,0.06393992,17474.0,17473.0,4.50373645]
[1673463371495,0.06393992,17474.0,17473.0,4.39082129]
[1673463371746,0.06393992,17474.0,17473.0,4.98007821]
[1673463372506,0.06393992,17474.0,17473.0,4.32064271]
[1673463372792,0.06393992,17474.0,17473.0,4.74837012]
[1673463373111,0.06393992,17474.0,17473.0,5.09048998]
[1673463375053,0.06393992,17474.0,17473.0,5.07419334]
[1673463375561,0.06393992,17474.0,17473.0,4.73207348]
[1673463376061,0.06393992,17474.0,17473.0,4.789582]
[1673463377053,0.016,17475.0,17473.0,4.789582]
[1673463377054,0.016,17475.0,17474.0,0.00639307]
[1673463377301,0.016,17475.0,17474.0,4.34553857]
[1673463377549,0.016,17475.0,17474.0,4.58723316]
[1673463377805,0.016,17475.0,17474.0,4.40304709]
[1673463378051,0.016,17475.0,17474.0,4.3524623]
[1673463378296,0.018,17475.0,17474.0,4.24994709]
[1673463378569,0.018,17475.0,17474.0,4.49243857]
[1673463378816,0.018,17475.0,17474.0,4.54994709]
[1673463379297,0.018,17475.0,17474.0,4.55844709]
[1673463379556,0.018,17475.0,17474.0,4.65349711]
[1673463379797,0.018,17475.0,17474.0,4.9855963]
[1673463380046,0.018,17475.0,17474.0,4.36425376]
[1673463380555,0.018,17475.0,17474.0,4.30674524]
[1673463380784,0.016,17475.0,17474.0,4.77777606]
[1673463381035,0.016,17475.0,17474.0,4.63877606]
[1673463381522,0.016,17475.0,17474.0,4.60672003]
[1673463381774,0.016,17475.0,17474.0,4.48251681]
[1673463382019,0.016,17475.0,17474.0,4.87073973]
[1673463382265,0.016,17475.0,17474.0,4.61421244]
[1673463382544,0.016,17475.0,17474.0,4.35885415]
[1673463382798,0.016,17475.0,17474.0,4.45206762]
[1673463386059,0.016,17475.0,17474.0,4.70856396]
[1673463386305,0.016,17475.0,17474.0,4.28097914]
[1673463386574,0.016,17475.0,17474.0,4.45206762]
[1673463386824,0.016,17475.0,17474.0,4.28098314]
[1673463387588,0.016,17475.0,17474.0,4.15654354]
[1673463387835,0.016,17475.0,17474.0,4.28075003]
[1673463388077,0.016,17475.0,17474.0,4.15654354]
[1673463388326,0.016,17475.0,17474.0,4.27436223]
[1673463388574,0.016,17475.0,17474.0,4.27438255]
[1673463388824,0.016,17475.0,17474.0,4.15015047]
[1673463389081,0.016,17475.0,17474.0,4.27434793]
[1673463389326,0.016,17475.0,17474.0,4.15015047]
[1673463389586,0.016,17475.0,17474.0,4.27437523]
[1673463390337,0.016,17475.0,17474.0,4.15015047]
[1673463390606,0.016,17475.0,17474.0,4.44584446]
[1673463391614,0.016,17475.0,17474.0,4.70238348]
[1673463391861,0.016,17475.0,17474.0,4.15018915]
[1673463392623,0.016,17475.0,17474.0,4.27483586]
[1673463393126,0.016,17475.0,17474.0,4.41012197]
[1673463393392,0.016,17475.0,17474.0,4.52524785]
[1673463394399,0.016,17475.0,17474.0,4.46773933]
[1673463394650,0.016,17475.0,17474.0,4.52524785]
[1673463394922,0.016,17475.0,17474.0,4.41012197]
[1673463395415,0.016,17475.0,17474.0,4.19080539]
[1673463396889,0.016,17475.0,17474.0,4.06809115]
[1673463397392,0.016,17475.0,17474.0,3.64050633]
[1673463397645,0.016,17475.0,17474.0,3.60852033]
[1673463397893,0.016,17475.0,17474.0,3.59215213]
[1673463398603,0.016,17475.0,17474.0,3.69797921]
[1673463399375,0.016,17475.0,17474.0,4.40220796]
[1673463400121,0.016,17475.0,17474.0,4.29620679]
[1673463400367,0.016,17475.0,17474.0,3.78221296]
[1673463400621,0.016,17475.0,17474.0,4.29640737]
[1673463400863,0.016,17475.0,17474.0,4.39589435]
[1673463404397,0.016,17475.0,17474.0,4.33838583]
[1673463404621,0.016,17475.0,17474.0,4.39589435]
[1673463408428,0.016,17475.0,17474.0,4.29640737]
[1673463408678,0.016,17475.0,17474.0,3.88463159]
[1673463412451,0.016,17475.0,17474.0,3.58463159]
[1673463412707,0.016,17475.0,17474.0,3.25369005]
[1673463412922,0.016,17475.0,17474.0,3.06345513]
[1673463414226,0.016,17475.0,17474.0,3.36345513]
[1673463414480,0.016,17475.0,17474.0,3.66345513]
[1673463414972,0.016,17475.0,17474.0,3.85369005]
[1673463415972,0.016,17475.0,17474.0,3.55369005]
[1673463416446,0.016,17475.0,17474.0,3.30594661]
[1673463416698,0.016,17475.0,17474.0,3.55369005]
[1673463417214,0.016,17475.0,17474.0,3.36345513]
[1673463417463,0.016,17475.0,17474.0,3.33921221]
[1673463417706,0.016,17475.0,17474.0,3.14897729]
[1673463418991,0.016,17475.0,17474.0,4.53959897]
[1673463419269,0.01440001,17475.0,17474.0,5.62978924]
[1673463419791,0.01440001,17475.0,17474.0,4.13674893]
[1673463420073,0.01440001,17475.0,17474.0,3.34943503]
[1673463422107,0.01440001,17475.0,17474.0,3.23679358]
[1673463422357,0.01440001,17475.0,17474.0,4.53959897]
[1673463422613,0.01440001,17475.0,17474.0,4.72983389]
[1673463422853,0.01440001,17475.0,17474.0,4.8321399]
[1673463423106,0.01440001,17475.0,17474.0,4.02222031]
[1673463423630,0.01440001,17475.0,17474.0,4.07972883]
[1673463423878,0.01440001,17475.0,17474.0,4.07948616]
[1673463426414,0.01440001,17475.0,17474.0,3.88925124]
[1673463427404,0.01440001,17475.0,17474.0,3.79945815]
[1673463429177,0.0084863,17476.0,17475.0,0.30603871]
[1673463429441,0.0084863,17476.0,17475.0,5.32614567]
[1673463429682,0.00731475,17477.0,17476.0,0.3]
[1673463429927,0.00731475,17477.0,17476.0,3.62585373]
[1673463430202,0.00731475,17477.0,17476.0,4.52580908]
[1673463430460,0.00731475,17477.0,17476.0,3.68336225]
[1673463431939,0.00731475,17477.0,17476.0,3.82436225]
[1673463432667,0.00731475,17477.0,17476.0,4.88960307]
[1673463433159,0.00731475,17477.0,17476.0,5.79058313]
[1673463433973,0.00874163,17478.0,17477.0,0.3]
[1673463434237,0.00874163,17478.0,17477.0,4.30270498]
[1673463434485,0.00874163,17478.0,17477.0,4.46667431]
[1673463435515,0.00874163,17478.0,17477.0,4.54567431]
[1673463436314,0.00874163,17478.0,17477.0,4.38267431]
[1673463436562,0.00874163,17478.0,17477.0,4.4399135]
[1673463436784,0.00874163,17478.0,17477.0,3.73572833]
[1673463438274,0.00874163,17478.0,17477.0,3.82963405]
[1673463438981,0.00874163,17478.0,17477.0,3.73572833]
[1673463439244,0.00874163,17478.0,17477.0,4.56234345]
[1673463439510,0.00874163,17478.0,17477.0,4.57084345]
[1673463440020,0.00874163,17478.0,17477.0,4.56964345]
[1673463441521,0.00786747,17478.0,17477.0,5.18661512]
[1673463442277,0.00786747,17478.0,17477.0,5.12853365]
[1673463442527,0.00786747,17478.0,17477.0,5.18604217]
[1673463444030,0.00786747,17478.0,17477.0,5.34954217]
[1673463445026,0.00786747,17478.0,17477.0,5.46450624]
[1673463446978,0.00786747,17478.0,17477.0,4.72436542]
[1673463447244,0.00786747,17478.0,17477.0,4.22377942]
[1673463447738,0.00786747,17478.0,17477.0,4.1662709]
[1673463447996,0.00786747,17478.0,17477.0,3.96518388]
[1673463448209,0.00786747,17478.0,17477.0,4.0226924]
[1673463449004,0.00786747,17478.0,17477.0,3.5590924]
[1673463449224,0.00786747,17478.0,17477.0,3.82328668]
[1673463449990,0.00786747,17478.0,17477.0,4.12328668]
[1673463450234,0.00786747,17478.0,17477.0,4.06580147]
[1673463450483,0.00786747,17478.0,17477.0,3.82330999]
[1673463450729,0.00786747,17478.0,17477.0,4.16557535]
[1673463451481,0.00786747,17478.0,17477.0,3.80727535]
[1673463451723,0.00786747,17478.0,17477.0,4.16557535]
[1673463452465,0.00786747,17478.0,17477.0,4.10809447]
[1673463452729,0.00786747,17478.0,17477.0,3.76580147]
[1673463457210,0.00786747,17478.0,17477.0,3.82330999]
[1673463458615,0.00786747,17478.0,17477.0,3.33798388]
[1673463459040,0.00786747,17478.0,17477.0,3.76622848]
[1673463459294,0.00786747,17478.0,17477.0,3.33798388]
[1673463459553,0.00786747,17478.0,17477.0,3.3954924]
[1673463459805,0.00786747,17478.0,17477.0,4.53404645]
[1673463460063,0.00684851,17478.0,17477.0,4.22556751]
[1673463461078,0.00684851,17478.0,17477.0,3.48542669]
[1673463461324,0.00684851,17478.0,17477.0,3.58052833]
[1673463461579,0.00684851,17478.0,17477.0,3.78542669]
[1673463462129,0.00684851,17478.0,17477.0,4.2992512]
[1673463462393,0.00684851,17478.0,17477.0,4.29925947]
[1673463462663,0.00684851,17478.0,17477.0,3.78542669]
[1673463463448,0.00684851,17478.0,17477.0,3.81736249]
[1673463463693,0.00684851,17478.0,17477.0,3.87487101]
[1673463464696,0.00684851,17478.0,17477.0,3.78542669]
[1673463465427,0.00684851,17478.0,17477.0,3.8936435]
[1673463465940,5.1e-07,17478.0,17477.0,4.52556751]
[1673463466201,0.00982337,17480.0,17478.0,0.30234649]
[1673463466452,0.00982337,17480.0,17479.0,2.32808849]
[1673463466707,0.00982337,17480.0,17479.0,4.84078915]
[1673463466948,0.00982337,17480.0,17479.0,5.04568751]
[1673463467432,0.00982337,17480.0,17479.0,4.81940368]
[1673463467942,0.01182337,17480.0,17479.0,4.65680368]
[1673463468463,0.01182337,17480.0,17479.0,4.77410202]
[1673463469494,0.01182337,17480.0,17479.0,4.7165935]
[1673463469708,0.01182337,17480.0,17479.0,4.77410202]
[1673463470467,0.01182337,17480.0,17479.0,4.61050202]
[1673463470701,0.01182337,17480.0,17479.0,4.56810366]
[1673463470955,0.01182337,17480.0,17479.0,4.77300202]
[1673463474205,0.01182337,17480.0,17479.0,4.77350202]
[1673463478242,0.01182337,17480.0,17479.0,4.77350202]
[1673463478500,0.01182337,17480.0,17479.0,4.05474667]
[1673463479501,0.01182337,17480.0,17479.0,3.6684531]
[1673463480016,0.01182337,17480.0,17479.0,4.01098563]
[1673463480269,0.01182337,17480.0,17479.0,3.6684531]
[1673463480494,0.01182337,17480.0,17479.0,4.01100211]
[1673463480778,0.01182337,17480.0,17479.0,3.6684531]
[1673463481029,0.01182337,17480.0,17479.0,4.01098532]
[1673463481282,0.01182337,17480.0,17479.0,4.01098592]
[1673463481529,0.01182337,17480.0,17479.0,3.6684531]
[1673463481776,0.01182337,17480.0,17479.0,4.01098577]
[1673463482029,0.01165555,17480.0,17479.0,4.01098581]
[1673463482784,0.01165555,17480.0,17479.0,3.6684531]
[1673463484131,0.01165555,17480.0,17479.0,3.83973327]
[1673463484323,0.01165555,17480.0,17479.0,3.88640896]
[1673463484602,0.54882245,17480.0,17479.0,2.88557389]
[1673463485095,0.54882245,17480.0,17479.0,3.22810896]
[1673463485367,0.54882245,17480.0,17479.0,3.24387389]
[1673463485861,0.54882245,17480.0,17479.0,3.18557389]
[1673463487341,0.01165555,17480.0,17479.0,3.18557389]
[1673463487586,0.01165555,17480.0,17479.0,3.54387389]
[1673463487838,0.01165555,17480.0,17479.0,3.18557389]
[1673463488570,0.01165555,17480.0,17479.0,2.61345889]
[1673463489318,0.01165555,17480.0,17479.0,2.314411]
[1673463489560,0.01165555,17480.0,17479.0,2.57131872]
[1673463489826,0.01165555,17480.0,17479.0,2.314411]
[1673463490093,0.01165555,17480.0,17479.0,2.57131872]
[1673463490346,0.01165555,17480.0,17479.0,2.314411]
[1673463490593,0.01165555,17480.0,17479.0,2.56281872]
[1673463491101,0.01165555,17480.0,17479.0,2.61745759]
[1673463492097,0.01165555,17480.0,17479.0,2.95999266]
[1673463492318,0.01165555,17480.0,17479.0,2.61746301]
[1673463492570,0.01165555,17480.0,17479.0,2.78875094]
[1673463493089,0.01165555,17480.0,17479.0,2.96000086]
[1673463493332,0.01165555,17480.0,17479.0,2.61746597]
[1673463495573,0.01165555,17480.0,17479.0,3.02642883]
[1673463495821,0.01165555,17480.0,17479.0,3.45161334]
[1673463496075,0.01165555,17480.0,17479.0,3.28033045]
[1673463496621,0.01165555,17480.0,17479.0,3.28043193]
[1673463496875,0.01165555,17480.0,17479.0,3.32675456]
[1673463497131,0.01165555,17480.0,17479.0,3.15548486]
[1673463497400,0.01165555,17480.0,17479.0,2.62595755]
[1673463498424,0.01165555,17480.0,17479.0,2.98425755]
[1673463498655,0.01165555,17480.0,17479.0,2.62595755]
[1673463499151,0.01165555,17480.0,17479.0,2.98425755]
[1673463499394,0.01165555,17480.0,17479.0,2.98426902]
[1673463500644,0.01165555,17480.0,17479.0,3.30727403]
[1673463501139,0.01165555,17480.0,17479.0,3.30726612]
[1673463501382,0.01165555,17480.0,17479.0,3.28652026]
[1673463502152,0.01165555,17480.0,17479.0,3.13599289]
[1673463502394,0.01165555,17480.0,17479.0,2.9489569]
[1673463502639,0.01165555,17480.0,17479.0,2.60645992]
[1673463504143,0.01165555,17480.0,17479.0,2.60722262]
[1673463504389,0.01165555,17480.0,17479.0,2.60645992]
[1673463504906,0.01165555,17480.0,17479.0,2.96475992]
[1673463505647,0.01165555,17480.0,17479.0,2.60645992]
[1673463506422,0.63337193,17480.0,17479.0,2.48066158]
[1673463506667,0.63337193,17480.0,17479.0,1.12573803]
[1673463507154,0.63337193,17480.0,17479.0,1.29700204]
[1673463507402,0.63337193,17480.0,17479.0,1.59700204]
[1673463508656,0.63337193,17480.0,17479.0,1.85388177]
[1673463508901,0.63337193,17480.0,17479.0,1.59700204]
[1673463509427,0.63337193,17480.0,17479.0,1.12573803]
[1673463509662,0.63337193,17480.0,17479.0,1.42573803]
[1673463509912,0.63337193,17480.0,17479.0,1.99785303]
[1673463510159,0.63337193,17480.0,17479.0,1.12573803]
[1673463510416,0.63337193,17480.0,17479.0,1.69785303]
[1673463511416,0.63337193,17480.0,17479.0,1.99785303]
[1673463511675,0.63337193,17480.0,17479.0,1.69785303]
[1673463511916,0.63337193,17480.0,17479.0,2.16911704]
[1673463513991,0.79627193,17480.0,17479.0,2.16911704]
[1673463514490,0.69851493,17480.0,17479.0,2.16911704]
[1673463516486,0.69851493,17480.0,17479.0,2.47542479]
[1673463516727,0.1629,17480.0,17479.0,2.47542062]
[1673463516967,0.1629,17480.0,17479.0,2.98061432]
[1673463518277,0.1629,17480.0,17479.0,3.15210914]
[1673463518781,0.1629,17480.0,17479.0,2.98112292]
[1673463520300,0.1629,17480.0,17479.0,2.98091099]
[1673463522505,0.1629,17480.0,17479.0,2.8098883]
[1673463522759,0.1629,17480.0,17479.0,2.64062267]
[1673463523000,0.1629,17480.0,17479.0,3.1546228]
[1673463523244,0.1629,17480.0,17479.0,2.65614761]
[1673463523998,1.05260569,17481.0,17479.0,2.65614761]
[1673463524244,1.05260569,17481.0,17479.0,2.60672376]
[1673463524501,0.88119152,17481.0,17479.0,2.60672376]
[1673463524761,1.05260569,17481.0,17479.0,2.60672376]
[1673463525500,0.88119152,17481.0,17479.0,2.60672376]
[1673463525996,0.88119152,17481.0,17479.0,2.60572376]
[1673463526250,1.05260569,17481.0,17479.0,2.60672376]
[1673463526733,0.88119152,17481.0,17479.0,2.60672376]
[1673463526976,1.05260569,17481.0,17479.0,2.60672376]
[1673463527230,1.35260569,17481.0,17479.0,2.30672376]
[1673463527464,0.216722,17480.0,17479.0,1.47743236]
[1673463527709,0.3,17480.0,17479.0,1.47743236]
[1673463528225,1.35260569,17481.0,17479.0,1.47743236]
[1673463528472,1.35260569,17481.0,17479.0,2.04954736]
[1673463528727,1.35260569,17481.0,17479.0,1.47743236]
[1673463528972,1.35260569,17481.0,17479.0,1.47643236]
[1673463529231,1.35260569,17481.0,17480.0,0.01602913]
[1673463529476,1.35260569,17481.0,17480.0,1.16019313]
[1673463529978,1.56932769,17481.0,17480.0,1.16019313]
[1673463530232,1.56932769,17481.0,17480.0,1.16719313]
[1673463530479,1.05260569,17481.0,17480.0,1.16719313]
[1673463530703,1.09791352,17481.0,17480.0,1.16719313]
[1673463531441,0.17257195,17481.0,17480.0,1.16719313]
[1673463531692,0.17257195,17481.0,17480.0,1.63869628]
[1673463532478,0.17257195,17481.0,17480.0,1.33869628]
[1673463533243,0.17257195,17481.0,17480.0,1.63869628]
[1673463533486,0.17257195,17481.0,17480.0,1.16719313]
[1673463539605,1.15893015,17481.0,17480.0,0.96719313]
[1673463540379,0.85893015,17481.0,17480.0,0.96719313]
[1673463540674,0.85893015,17481.0,17480.0,1.13869628]
[1673463541146,0.85893015,17481.0,17480.0,0.96719313]
[1673463541391,0.85893015,17481.0,17480.0,1.13869628]
[1673463541873,1.15893015,17481.0,17480.0,0.96719313]
[1673463542324,0.85893015,17481.0,17480.0,0.96719313]
[1673463542826,0.85893015,17481.0,17480.0,1.13869628]
[1673463543076,0.85893015,17481.0,17480.0,0.96719313]
[1673463544013,1.33034432,17481.0,17480.0,0.96719313]
[1673463544237,1.37565215,17481.0,17480.0,0.96719313]
[1673463544514,1.54706632,17481.0,17480.0,0.96719313]
[1673463544766,1.33034432,17481.0,17480.0,0.96719313]
[1673463545277,0.85893015,17481.0,17480.0,0.96719313]
[1673463546578,1.03034432,17481.0,17480.0,0.96719313]
[1673463546827,1.15893015,17481.0,17480.0,0.96719313]
[1673463547160,1.15893015,17481.0,17480.0,1.39587268]
[1673463547324,1.15893015,17481.0,17480.0,1.13869628]
[1673463547568,1.15893015,17481.0,17480.0,1.39587268]
[1673463547812,1.15893015,17481.0,17480.0,1.13869628]
[1673463548090,0.84036426,17481.0,17480.0,1.39587268]
[1673463548588,1.01177843,17481.0,17480.0,0.96719313]
[1673463550570,1.07449437,17481.0,17480.0,0.96719313]
[1673463551122,0.85777237,17481.0,17480.0,0.96719313]
[1673463551898,1.15777237,17481.0,17480.0,0.96719313]
[1673463552400,1.63109598,17481.0,17480.0,0.96719313]
[1673463552902,1.41437398,17481.0,17480.0,0.96719313]
[1673463553402,1.63109598,17481.0,17480.0,0.96719313]
[1673463554761,1.41437398,17481.0,17480.0,0.96719313]
[1673463555186,0.85777237,17481.0,17480.0,0.96719313]
[1673463555447,1.33109598,17481.0,17480.0,0.96719313]
[1673463555695,1.11437398,17481.0,17480.0,0.96719313]
[1673463555936,1.63109598,17481.0,17480.0,0.96719313]
[1673463556190,1.41437398,17481.0,17480.0,0.96719313]
[1673463556444,0.6863582,17481.0,17480.0,0.96719313]
[1673463558453,1.55453754,17482.0,17480.0,1.43869628]
[1673463558708,1.55453754,17482.0,17480.0,1.13869628]
[1673463558958,2.06671968,17482.0,17480.0,1.13869628]
[1673463559730,2.06671968,17482.0,17480.0,1.13169628]
[1673463559977,2.06671968,17482.0,17480.0,1.13869628]
[1673463562233,0.516693,17481.0,17480.0,1.13869628]
[1673463562483,2.06671968,17482.0,17480.0,1.13869628]
[1673463562738,2.36671968,17482.0,17480.0,1.13869628]
[1673463562986,0.216693,17481.0,17480.0,1.13869628]
[1673463563243,0.516693,17481.0,17480.0,0.96019313]
[1673463563499,0.3,17481.0,17480.0,0.96019313]
[1673463564019,0.4637,17481.0,17480.0,0.96719313]
[1673463564305,1.36607114,17481.0,17480.0,0.96719313]
[1673463564530,1.14937814,17481.0,17480.0,0.96719313]
[1673463564822,1.36607114,17481.0,17480.0,0.96719313]
[1673463565036,1.14937814,17481.0,17480.0,0.96719313]
[1673463565523,1.06607114,17481.0,17480.0,0.96719313]
[1673463566270,0.84937814,17481.0,17480.0,0.96719313]
[1673463566520,0.84937814,17481.0,17480.0,1.13869628]
[1673463566758,0.84937814,17481.0,17480.0,2.01077828]
[1673463567267,1.06607114,17481.0,17480.0,2.01077828]
[1673463567508,0.380393,17481.0,17480.0,1.43869628]
[1673463567758,0.1637,17481.0,17480.0,1.13869628]
[1673463568007,0.1637,17481.0,17480.0,1.71077828]
[1673463568554,0.1637,17481.0,17480.0,2.01077828]
[1673463570051,0.380393,17481.0,17480.0,2.01077828]
[1673463570319,0.1637,17481.0,17480.0,1.13869628]
[1673463570570,0.1637,17481.0,17480.0,0.96719313]
[1673463570832,0.380393,17481.0,17480.0,0.96719313]
[1673463571331,0.1637,17481.0,17480.0,0.96719313]
[1673463572343,1.24085968,17481.0,17480.0,0.96719313]
[1673463572593,0.85275251,17481.0,17480.0,0.96719313]
[1673463572858,0.85275251,17481.0,17480.0,1.13869628]
[1673463573643,0.85275251,17481.0,17480.0,0.39511113]
[1673463573890,0.68905251,17481.0,17480.0,0.56661428]
[1673463574144,1.81113915,17482.0,17480.0,0.56661428]
[1673463574421,1.38312337,17482.0,17480.0,0.82379068]
[1673463574673,1.99331521,17482.0,17480.0,0.97550775]
[1673463574959,2.46472938,17482.0,17480.0,0.71133135]
[1673463575184,0.516693,17481.0,17480.0,0.71833135]
[1673463575432,0.516693,17481.0,17480.0,0.5468282]
[1673463575683,2.72133099,17482.0,17480.0,0.5468282]